bitfinex/quotes_SOLUSD_20241213
["timestamp","ask_amount","ask_price","bid_price","bid_amount"]
[1734095234775,8.32941216,224.92,224.91,0.5]
[1734095235670,0.6634,224.96,224.91,0.5]
[1734095235838,0.6634,224.98,224.91,0.5]
[1734095236037,8.32941216,224.96,224.91,0.5]
[1734095236264,8.32941216,224.94,224.91,0.5]
[1734095237258,8.32941216,224.95,224.91,0.5]
[1734095237658,8.32941216,224.97,224.91,24.276884]
[1734095238075,8.32941216,224.96,224.91,24.276884]
[1734095238476,8.32941216,224.95,224.91,0.5]
[1734095238666,8.32941216,224.93,224.91,0.5]
[1734095239881,8.32941216,224.94,224.91,0.5]
[1734095240681,8.32941216,224.93,224.91,0.5]
[1734095245081,8.32941216,224.92,224.91,0.5]
[1734095245584,38.32941216,224.92,224.91,0.5]
[1734095249486,30.0,224.92,224.91,0.5]
[1734095249695,8.32941216,224.96,224.91,0.5]
[1734095249986,8.32941216,224.93,224.91,0.5]
[1734095251785,8.32941216,224.94,224.91,0.5]
[1734095254185,20.6634,225.01,224.91,0.5]
[1734095254386,8.32941216,224.94,224.91,0.5]
[1734095255569,20.6634,225.01,224.91,0.5]
[1734095255772,8.32941216,224.96,224.91,0.5]
[1734095256299,20.6634,225.01,224.91,0.5]
[1734095256475,8.32941216,224.96,224.91,0.5]
[1734095256667,20.6634,225.01,224.91,0.5]
[1734095256668,8.32941216,225.01,224.95,8.32941216]
[1734095256875,8.32941216,225.01,224.96,23.776884]
[1734095257079,8.32941216,225.0,224.94,23.776884]
[1734095257279,8.32941216,224.98,224.94,23.776884]
[1734095257484,8.32941216,224.96,224.92,23.776884]
[1734095259593,0.6634,225.05,224.92,23.776884]
[1734095259594,8.32941216,224.97,224.92,23.776884]
[1734095260371,8.32941216,224.98,224.92,32.10629616]
[1734095261298,0.6634,225.05,224.96,8.32941216]
[1734095261489,8.32941216,225.01,224.97,23.776884]
[1734095261978,8.32941216,224.98,224.94,20.0]
[1734095262189,8.32941216,224.98,224.93,23.776884]
[1734095264402,8.32941216,224.97,224.94,20.0]
[1734095264582,8.32941216,224.97,224.92,23.776884]
[1734095266384,8.32941216,224.96,224.92,23.776884]
[1734095266573,8.32941216,224.96,224.91,24.276884]
[1734095267495,8.32941216,224.96,224.91,0.5]
[1734095267987,8.32941216,224.94,224.91,0.5]
[1734095269304,8.32941216,224.95,224.91,0.5]
[1734095271093,8.32941216,224.93,224.91,0.5]
[1734095271292,1.5679,225.0,224.91,0.5]
[1734095271293,8.99281216,224.92,224.91,0.5]
[1734095273091,10.51191216,224.92,224.91,0.5]
[1734095274289,8.32941216,224.85,224.84,0.5375738]
[1734095281405,0.6634,224.9,224.84,0.5375738]
[1734095281590,8.32941216,224.85,224.84,0.5375738]
[1734095282584,8.99281216,224.9,224.85,23.776884]
[1734095282801,0.6634,224.9,224.85,32.10629616]
[1734095283487,0.6634,224.9,224.85,23.776884]
[1734095283692,8.32941216,224.9,224.85,23.776884]
[1734095283883,8.32941216,224.88,224.84,0.5375738]
[1734095284083,0.6634,224.87,224.84,0.5375738]
[1734095286506,8.99281216,224.87,224.84,0.5375738]
[1734095286718,8.32941216,224.86,224.84,0.5375738]
[1734095286918,0.6634,224.85,224.84,0.5375738]
[1734095287101,8.99281216,224.85,224.84,0.5375738]
[1734095287894,8.32941216,224.85,224.84,0.5375738]
[1734095288096,8.32941216,224.86,224.84,0.5375738]
[1734095289008,8.99281216,224.85,224.84,0.5375738]
[1734095290605,0.6634,224.92,224.84,0.5375738]
[1734095290793,8.32941216,224.87,224.84,0.5375738]
[1734095291194,0.6634,224.92,224.84,0.5375738]
[1734095291424,8.32941216,224.86,224.84,0.5375738]
[1734095293516,8.99281216,224.85,224.84,0.5375738]
[1734095298224,0.6634,224.85,224.84,0.5375738]
[1734095298420,8.32941216,224.85,224.84,0.5375738]
[1734095305416,52.7655608,224.85,224.84,0.5375738]
[1734095305617,60.0043962,224.85,224.84,0.5375738]
[1734095306937,61.6678962,224.85,224.84,0.5375738]
[1734095307110,82.27353148,224.85,224.84,0.5375738]
[1734095307310,8.32941216,224.76,224.74,5.0]
[1734095307506,0.6634,224.75,224.74,5.0]
[1734095308636,0.6634,224.83,224.74,5.0]
[1734095308866,8.32941216,224.78,224.74,5.0]
[1734095311542,8.32941216,224.79,224.74,5.0]
[1734095311841,8.32941216,224.8,224.74,5.0]
[1734095312141,0.6634,224.79,224.74,5.0]
[1734095313132,8.99281216,224.79,224.74,5.0]
[1734095314425,0.6634,224.79,224.74,5.0]
[1734095314625,8.32941216,224.75,224.74,5.0]
[1734095319143,0.6634,224.8,224.74,5.0]
[1734095319465,8.32941216,224.75,224.74,5.0]
[1734095325750,8.99281216,224.75,224.74,5.0]
[1734095326551,8.32941216,224.75,224.74,5.0]
[1734095330644,0.6634,224.77,224.74,5.0]
[1734095330849,8.32941216,224.75,224.74,5.0]
[1734095333740,41.6470608,224.75,224.74,5.0]
[1734095334234,42.4359508,224.75,224.74,5.0]
[1734095334429,53.30102743,224.75,224.74,5.0]
[1734095334944,53.17553743,224.75,224.74,5.0]
[1734095335336,53.17553743,224.75,224.61,0.5375738]
[1734095335541,8.32941216,224.66,224.61,24.3144578]
[1734095336041,0.6634,224.72,224.61,0.5375738]
[1734095336042,8.32941216,224.65,224.61,0.5375738]
[1734095340659,0.6634,224.72,224.65,23.776884]
[1734095340861,8.32941216,224.7,224.65,23.776884]
[1734095341445,8.32941216,224.69,224.63,23.776884]
[1734095341651,8.32941216,224.68,224.63,23.776884]
[1734095341851,8.32941216,224.67,224.63,23.776884]
[1734095342145,8.32941216,224.67,224.61,8.86698596]
[1734095342146,20.0,224.62,224.61,0.5375738]
[1734095342344,20.6634,224.62,224.61,0.5375738]
[1734095342974,0.6634,224.62,224.61,0.5375738]
[1734095343165,8.32941216,224.62,224.61,0.5375738]
[1734095344244,20.0,224.62,224.61,0.5375738]
[1734095344463,20.6634,224.62,224.61,0.5375738]
[1734095344662,8.99281216,224.62,224.61,0.5375738]
[1734095345446,8.32941216,224.62,224.61,0.5375738]
[1734095345860,0.6634,224.65,224.61,0.5375738]
[1734095346057,8.32941216,224.62,224.61,0.5375738]
[1734095347162,0.6634,224.65,224.61,0.5375738]
[1734095347163,8.32941216,224.63,224.61,0.5375738]
[1734095347342,8.99281216,224.62,224.61,0.5375738]
[1734095348945,20.0,224.67,224.61,0.5375738]
[1734095349147,8.32941216,224.62,224.61,0.5375738]
[1734095352850,0.6634,224.66,224.61,0.5375738]
[1734095353046,8.32941216,224.62,224.61,0.5375738]
[1734095365477,0.6634,224.67,224.61,0.5375738]
[1734095365670,8.32941216,224.62,224.61,0.5375738]
[1734095370471,41.6470608,224.62,224.61,0.5375738]
[1734095371793,42.3104608,224.62,224.61,0.5375738]
[1734095372375,11.1304,224.61,224.46,7.614]
[1734095372694,8.32941216,224.52,224.46,7.614]
[1734095372900,8.32941216,224.52,224.46,15.94341216]
[1734095373679,8.32941216,224.52,224.49,20.0]
[1734095374196,8.32941216,224.5,224.46,7.614]
[1734095374388,8.32941216,224.51,224.47,23.776884]
[1734095374800,8.32941216,224.5,224.47,23.776884]
[1734095375184,8.32941216,224.49,224.41,19.93279406]
[1734095375498,8.32941216,224.49,224.45,20.0]
[1734095376425,8.32941216,224.49,224.45,23.776884]
[1734095378380,0.6634,224.58,224.45,23.776884]
[1734095378574,8.32941216,224.51,224.45,23.776884]
[1734095378776,8.32941216,224.51,224.45,32.10629616]
[1734095380086,8.32941216,224.51,224.45,23.776884]
[1734095381395,8.32941216,224.5,224.45,23.776884]
[1734095382086,8.32941216,224.49,224.45,23.776884]
[1734095382292,8.32941216,224.47,224.44,20.0]
[1734095382935,8.32941216,224.46,224.44,20.0]
[1734095383099,8.32941216,224.45,224.41,8.1247]
[1734095383296,8.32941216,224.45,224.41,20.0]
[1734095383615,8.32941216,224.45,224.42,20.0]
[1734095384122,8.32941216,224.45,224.41,20.0]
[1734095384291,33.31764864,224.51,224.39,0.5375738]
[1734095384292,8.32941216,224.43,224.39,0.5375738]
[1734095385599,8.32941216,224.42,224.39,24.3144578]
[1734095385807,8.32941216,224.42,224.39,0.5375738]
[1734095386022,8.32941216,224.41,224.39,0.5375738]
[1734095386691,8.32941216,224.42,224.39,0.5375738]
[1734095387216,8.32941216,224.41,224.39,0.5375738]
[1734095388627,0.6634,224.48,224.39,0.5375738]
[1734095388932,8.32941216,224.41,224.39,0.5375738]
[1734095391121,8.32941216,224.4,224.39,0.5375738]
[1734095394413,15.66339811,224.48,224.39,0.5375738]
[1734095394611,8.32941216,224.4,224.39,0.5375738]
[1734095397214,41.6470608,224.4,224.39,0.5375738]
[1734095400434,0.6634,224.44,224.39,0.5375738]
[1734095400645,8.32941216,224.4,224.39,0.5375738]
[1734095403645,0.6634,224.46,224.39,0.5375738]
[1734095403813,8.32941216,224.4,224.39,0.5375738]
[1734095405314,0.6634,224.46,224.39,0.5375738]
[1734095405550,8.32941216,224.41,224.39,0.5375738]
[1734095405913,0.6634,224.46,224.39,0.5375738]
[1734095406215,8.32941216,224.41,224.39,0.5375738]
[1734095407725,1.6595,224.47,224.39,0.5375738]
[1734095407945,0.6634,224.46,224.39,0.5375738]
[1734095408307,8.32941216,224.42,224.39,0.5375738]
[1734095408616,8.32941216,224.41,224.39,0.5375738]
[1734095409632,0.6634,224.49,224.39,0.5375738]
[1734095409824,8.32941216,224.42,224.39,0.5375738]
[1734095410228,0.6634,224.49,224.4,23.902374]
[1734095410422,8.32941216,224.46,224.4,32.23178616]
[1734095410640,8.32941216,224.45,224.4,23.902374]
[1734095411127,0.6634,224.5,224.4,23.902374]
[1734095411329,8.32941216,224.46,224.4,32.23178616]
[1734095411545,2.3229,224.53,224.4,32.23178616]
[1734095411748,8.32941216,224.47,224.42,0.12549]
[1734095412048,8.32941216,224.47,224.42,23.902374]
[1734095412245,0.6634,224.56,224.42,40.47538616]
[1734095412450,8.32941216,224.49,224.42,40.47538616]
[1734095412751,0.6634,224.56,224.42,40.47538616]
[1734095412752,8.32941216,224.48,224.42,40.47538616]
[1734095412926,0.6634,224.56,224.44,8.32941216]
[1734095413131,8.32941216,224.51,224.45,23.776884]
[1734095413341,0.6634,224.57,224.46,0.12549]
[1734095413556,8.32941216,224.51,224.46,0.12549]
[1734095414038,0.6634,224.57,224.46,0.12549]
[1734095414252,8.32941216,224.51,224.46,0.12549]
[1734095414743,0.6634,224.59,224.46,0.12549]
[1734095414744,8.32941216,224.5,224.46,0.12549]
[1734095414953,0.6634,224.59,224.45,0.12549]
[1734095414954,8.32941216,224.49,224.45,0.12549]
[1734095415469,0.6634,224.59,224.45,0.12549]
[1734095415927,8.32941216,224.5,224.45,0.12549]
[1734095416565,0.6634,224.59,224.45,0.12549]
[1734095416729,0.6634,224.59,224.49,0.12549]
[1734095416928,8.32941216,224.55,224.49,23.902374]
[1734095417145,0.6634,224.61,224.51,0.12549]
[1734095417347,0.6634,224.61,224.52,7.7001]
[1734095417535,8.32941216,224.58,224.53,23.902374]
[1734095417925,8.32941216,224.6,224.53,32.23178616]
[1734095418155,0.6634,224.67,224.53,32.23178616]
[1734095418339,8.32941216,224.61,224.55,23.776884]
[1734095418649,8.32941216,224.62,224.56,0.25098]
[1734095418957,8.32941216,224.61,224.56,0.25098]
[1734095419945,20.0,224.68,224.56,0.25098]
[1734095420148,8.32941216,224.62,224.56,0.25098]
[1734095420865,8.32941216,224.62,224.55,32.10629616]
[1734095420866,8.32941216,224.62,224.55,0.12549]
[1734095421152,8.32941216,224.61,224.56,23.902374]
[1734095421949,8.32941216,224.62,224.56,32.23178616]
[1734095422230,0.6634,224.67,224.58,0.12549]
[1734095422535,8.32941216,224.63,224.58,0.12549]
[1734095422735,8.32941216,224.64,224.58,0.12549]
[1734095423747,8.32941216,224.64,224.58,8.45490216]
[1734095424054,8.32941216,224.64,224.59,23.776884]
[1734095424270,8.32941216,224.66,224.6,0.12549]
[1734095424475,8.32941216,224.66,224.6,0.25098]
[1734095425137,8.32941216,224.67,224.6,8.58039216]
[1734095425336,8.32941216,224.67,224.62,0.12549]
[1734095426352,8.32941216,224.65,224.61,31.746484]
[1734095426542,8.32941216,224.64,224.61,31.746484]
[1734095426744,0.6634,224.72,224.61,31.746484]
[1734095427039,8.32941216,224.68,224.62,0.12549]
[1734095427370,8.32941216,224.67,224.62,0.12549]
[1734095427538,8.32941216,224.66,224.62,0.12549]
[1734095427944,0.6634,224.72,224.62,8.58039216]
[1734095428148,8.32941216,224.7,224.64,23.776884]
[1734095428756,8.32941216,224.7,224.65,0.12549]
[1734095429069,0.6634,224.77,224.69,0.12549]
[1734095429277,8.32941216,224.75,224.69,0.12549]
[1734095431066,8.32941216,224.75,224.7,23.776884]
[1734095431464,8.32941216,224.76,224.71,0.12549]
[1734095431777,8.32941216,224.77,224.71,0.12549]
[1734095432341,1.5461,224.83,224.71,0.12549]
[1734095432342,2.2095,224.83,224.74,0.12549]
[1734095432547,8.32941216,224.8,224.74,23.902374]
[1734095433844,8.32941216,224.81,224.74,32.23178616]
[1734095434770,8.32941216,224.8,224.74,23.902374]
[1734095434973,8.32941216,224.79,224.74,23.902374]
[1734095435174,33.31764864,224.84,224.74,23.902374]
[1734095435373,8.32941216,224.79,224.74,23.902374]
[1734095436559,8.32941216,224.8,224.74,23.902374]
[1734095437776,8.32941216,224.81,224.74,32.23178616]
[1734095438157,8.32941216,224.79,224.73,0.12549]
[1734095438479,8.32941216,224.8,224.75,0.12549]
[1734095438682,8.32941216,224.8,224.75,23.902374]
[1734095440262,8.32941216,224.79,224.74,0.12549]
[1734095440675,8.32941216,224.8,224.74,24.027864]
[1734095441174,8.32941216,224.79,224.73,23.776884]
[1734095441381,33.31764864,224.84,224.52,22.2688]
[1734095441382,8.32941216,224.76,224.7,7.7031]
[1734095441759,8.32941216,224.76,224.71,0.12549]
[1734095441969,8.32941216,224.77,224.71,0.12549]
[1734095442577,8.32941216,224.76,224.71,0.12549]
[1734095442869,8.32941216,224.73,224.71,23.776884]
[1734095443087,11.1205,224.81,224.71,23.776884]
[1734095443088,8.32941216,224.74,224.71,23.776884]
[1734095443270,8.32941216,224.76,224.71,23.776884]
[1734095443577,8.32941216,224.77,224.72,0.12549]
[1734095444481,8.32941216,224.76,224.72,0.12549]
[1734095445272,8.32941216,224.75,224.72,0.12549]
[1734095445459,8.32941216,224.75,224.71,23.776884]
[1734095445656,11.7833,224.83,224.71,23.776884]
[1734095445657,8.32941216,224.74,224.71,23.776884]
[1734095445882,8.32941216,224.75,224.71,23.776884]
[1734095446065,8.32941216,224.75,224.7,23.776884]
[1734095446260,8.32941216,224.76,224.7,23.776884]
[1734095446462,8.32941216,224.76,224.7,32.10629616]
[1734095447458,11.7833,224.83,224.7,32.10629616]
[1734095447459,8.32941216,224.75,224.7,23.776884]
[1734095447785,8.32941216,224.75,224.69,23.902374]
[1734095447983,8.32941216,224.77,224.71,0.12549]
[1734095448169,8.32941216,224.78,224.72,23.776884]
[1734095448367,0.6634,224.83,224.72,23.776884]
[1734095448576,0.6634,224.83,224.71,0.12549]
[1734095448577,8.32941216,224.77,224.71,32.23178616]
[1734095451367,8.32941216,224.77,224.71,23.902374]
[1734095452993,8.32941216,224.75,224.7,0.25098]
[1734095455279,8.32941216,224.76,224.7,0.25098]
[1734095456872,8.32941216,224.76,224.71,23.776884]
[1734095457673,8.32941216,224.76,224.7,24.027864]
[1734095458890,8.32941216,224.76,224.7,32.35727616]
[1734095459070,8.32941216,224.77,224.7,32.35727616]
[1734095459677,0.6634,224.83,224.7,32.35727616]
[1734095459882,8.32941216,224.77,224.7,32.35727616]
[1734095460406,8.32941216,224.76,224.7,32.35727616]
[1734095461192,8.32941216,224.76,224.72,23.776884]
[1734095461386,0.6634,224.83,224.72,23.776884]
[1734095461806,8.32941216,224.77,224.72,23.776884]
[1734095462111,8.32941216,224.76,224.7,24.027864]
[1734095464995,8.32941216,224.78,224.71,8.32941216]
[1734095465180,8.32941216,224.78,224.72,23.776884]
[1734095466091,8.32941216,224.78,224.73,0.12549]
[1734095466292,0.6634,224.83,224.76,23.776884]
[1734095466478,8.32941216,224.81,224.76,23.776884]
[1734095468601,8.32941216,224.81,224.75,0.12549]
[1734095468976,8.32941216,224.81,224.75,0.25098]
[1734095470893,8.32941216,224.8,224.75,0.25098]
[1734095471589,0.6634,224.88,224.75,0.25098]
[1734095471904,8.32941216,224.81,224.77,0.12549]
[1734095472203,8.32941216,224.83,224.77,0.25098]
[1734095474723,8.32941216,224.84,224.77,8.58039216]
[1734095475083,8.32941216,224.84,224.78,23.776884]
[1734095475284,8.32941216,224.85,224.79,0.25098]
[1734095475511,0.6634,224.9,224.8,23.776884]
[1734095475716,8.32941216,224.86,224.8,23.776884]
[1734095475904,8.32941216,224.85,224.8,23.776884]
[1734095477297,8.32941216,224.84,224.79,24.027864]
[1734095477498,8.32941216,224.83,224.79,24.027864]
[1734095477711,8.32941216,224.83,224.8,20.0]
[1734095478091,8.32941216,224.82,224.81,23.776884]
[1734095479190,8.32941216,224.82,224.75,0.12549]
[1734095479398,0.6634,224.81,224.74,6.5341]
[1734095479619,8.32941216,224.78,224.74,6.5341]
[1734095479829,8.32941216,224.78,224.75,0.12549]
[1734095480004,0.6634,224.83,224.75,0.12549]
[1734095480322,8.32941216,224.79,224.75,0.12549]
[1734095480722,8.32941216,224.79,224.75,23.902374]
[1734095480899,8.32941216,224.76,224.69,8.224]
[1734095481100,8.32941216,224.74,224.69,8.224]
[1734095481601,8.32941216,224.74,224.7,0.12549]
[1734095482008,8.32941216,224.74,224.69,8.224]
[1734095482206,8.32941216,224.73,224.69,8.224]
[1734095482418,8.32941216,224.73,224.7,0.12549]
[1734095482619,8.32941216,224.73,224.7,23.902374]
[1734095484736,11.783,224.83,224.66,8.32941216]
[1734095484737,8.32941216,224.71,224.66,20.0]
[1734095484898,8.32941216,224.69,224.67,0.12549]
[1734095485632,8.32941216,224.7,224.67,0.12549]
[1734095486003,8.32941216,224.7,224.67,23.902374]
[1734095487841,8.32941216,224.71,224.67,23.902374]
[1734095488429,8.32941216,224.72,224.67,23.902374]
[1734095490540,8.32941216,224.71,224.67,23.902374]
[1734095493752,8.32941216,224.74,224.68,0.12549]
[1734095494257,8.32941216,224.76,224.71,0.12549]
[1734095494451,8.32941216,224.76,224.71,23.902374]
[1734095495053,8.32941216,224.76,224.7,24.027864]
[1734095496145,8.32941216,224.75,224.68,23.776884]
[1734095496343,8.32941216,224.75,224.69,0.12549]
[1734095496650,8.32941216,224.74,224.69,0.25098]
[1734095498151,8.32941216,224.72,224.69,0.12549]
[1734095498328,8.32941216,224.72,224.67,23.776884]
[1734095498528,8.32941216,224.71,224.68,0.12549]
[1734095501766,8.32941216,224.71,224.67,23.776884]
[1734095501930,8.32941216,224.7,224.67,23.776884]
[1734095502130,8.32941216,224.68,224.67,23.776884]
[1734095502367,8.32941216,224.68,224.62,8.1095]
[1734095502533,8.32941216,224.67,224.62,8.1095]
[1734095502728,8.32941216,224.67,224.63,0.12549]
[1734095502962,8.32941216,224.66,224.63,0.12549]
[1734095503639,8.32941216,224.66,224.63,24.027864]
[1734095504563,8.32941216,224.67,224.63,24.027864]
[1734095506359,0.6634,224.72,224.63,23.902374]
[1734095506360,8.32941216,224.66,224.63,23.902374]
[1734095506565,8.32941216,224.66,224.65,23.776884]
[1734095506759,8.32941216,224.66,224.64,20.0]
[1734095507139,8.32941216,224.66,224.62,20.0]
[1734095507341,8.32941216,224.66,224.63,43.776884]
[1734095507548,8.32941216,224.66,224.63,23.776884]
[1734095509344,8.32941216,224.67,224.63,23.776884]
[1734095509546,8.32941216,224.68,224.64,0.12549]
[1734095512576,0.6634,224.75,224.64,0.12549]
[1734095512577,8.32941216,224.69,224.64,0.12549]
[1734095513865,8.32941216,224.69,224.64,0.25098]
[1734095514176,0.6634,224.78,224.67,32.35727616]
[1734095514354,8.32941216,224.74,224.67,33.02470448]
[1734095514561,8.32941216,224.73,224.67,24.69529232]
[1734095515768,8.32941216,224.73,224.67,33.02470448]
[1734095517294,8.32941216,224.73,224.67,24.69529232]
[1734095518890,8.32941216,224.72,224.67,24.69529232]
[1734095519284,8.32941216,224.71,224.67,24.027864]
[1734095520367,0.6634,224.78,224.67,24.027864]
[1734095520584,12.6426,224.81,224.67,24.027864]
[1734095520585,8.32941216,224.72,224.67,24.027864]
[1734095521899,0.6634,224.8,224.67,24.027864]
[1734095522384,8.32941216,224.72,224.67,24.027864]
[1734095524300,8.32941216,224.71,224.67,24.027864]
[1734095525776,8.32941216,224.7,224.67,24.027864]
[1734095525974,11.1219,224.79,224.67,23.776884]
[1734095525975,8.32941216,224.69,224.67,23.776884]
[1734095526181,8.32941216,224.68,224.67,23.776884]
[1734095526694,0.6634,224.78,224.67,23.776884]
[1734095526695,8.32941216,224.69,224.67,23.776884]
[1734095527073,8.32941216,224.68,224.64,0.12549]
[1734095527274,8.32941216,224.65,224.64,0.12549]
[1734095527699,8.32941216,224.65,224.62,20.0]
[1734095528074,8.32941216,224.64,224.61,20.0]
[1734095528886,8.32941216,224.64,224.6,0.12549]
[1734095529596,8.32941216,224.64,224.6,24.027864]
[1734095530500,8.32941216,224.61,224.59,23.776884]
[1734095530792,8.32941216,224.6,224.59,0.25098]
[1734095531173,8.32941216,224.6,224.59,0.12549]
[1734095531369,8.32941216,224.6,224.55,11.133]
[1734095531594,0.6634,224.7,224.56,0.12549]
[1734095531595,8.32941216,224.59,224.56,0.12549]
[1734095531900,8.32941216,224.59,224.55,11.133]
[1734095532105,8.32941216,224.59,224.53,8.99719297]
[1734095532394,8.32941216,224.59,224.54,0.12549]
[1734095532585,8.32941216,224.59,224.54,24.027864]
[1734095532787,0.6634,224.68,224.54,0.12549]
[1734095532788,8.32941216,224.56,224.54,0.12549]
[1734095533175,8.32941216,224.56,224.54,0.25098]
[1734095533877,8.32941216,224.57,224.54,0.25098]
[1734095537874,8.32941216,224.58,224.54,0.25098]
[1734095539104,8.32941216,224.57,224.54,0.25098]
[1734095540292,8.32941216,224.58,224.54,0.25098]
[1734095541596,8.32941216,224.55,224.53,20.0]
[1734095541898,8.32941216,224.54,224.53,20.0]
[1734095542204,8.32941216,224.54,224.51,0.12549]
[1734095542380,8.32941216,224.53,224.51,0.12549]
[1734095543101,8.32941216,224.53,224.51,23.902374]
[1734095543680,8.32941216,224.53,224.5,20.0]
[1734095544175,8.32941216,224.51,224.44,137.16800669]
[1734095544378,8.32941216,224.49,224.42,19.46891216]
[1734095544594,8.32941216,224.48,224.42,11.80760172]
[1734095545110,8.32941216,224.47,224.42,11.1395]
[1734095545287,8.32941216,224.47,224.43,0.12549]
[1734095545493,8.32941216,224.47,224.42,13.78784772]
[1734095545812,8.32941216,224.45,224.41,7.7312]
[1734095545998,8.32941216,224.46,224.42,0.12549]
[1734095546199,8.32941216,224.46,224.41,7.7312]
[1734095546387,8.32941216,224.46,224.44,20.0]
[1734095546587,8.32941216,224.46,224.42,20.0]
[1734095546804,8.32941216,224.46,224.39,1.20579328]
[1734095547007,8.32941216,224.44,224.4,0.12549]
[1734095547216,8.32941216,224.43,224.4,0.12549]
[1734095547732,8.32941216,224.43,224.4,23.902374]
[1734095548031,8.32941216,224.41,224.39,0.5375738]
[1734095548409,8.32941216,224.4,224.39,0.5375738]
[1734095550109,0.6634,224.5,224.39,0.5375738]
[1734095550291,8.32941216,224.41,224.39,0.5375738]
[1734095550991,8.32941216,224.4,224.39,0.5375738]
[1734095557604,41.6470608,224.4,224.39,0.5375738]
[1734095560253,8.32941216,224.4,224.39,0.5375738]
[1734095561736,41.6470608,224.4,224.39,0.5375738]
[1734095564844,8.32941216,224.4,224.39,0.5375738]
[1734095566211,1.6544,224.43,224.39,0.5375738]
[1734095566425,8.32941216,224.4,224.39,0.5375738]
[1734095567432,0.6634,224.46,224.39,0.5375738]
[1734095567736,8.32941216,224.4,224.39,0.5375738]
[1734095575122,41.6470608,224.4,224.39,0.5375738]
[1734095579748,0.6634,224.43,224.39,0.5375738]
[1734095580125,11.1374,224.47,224.39,0.5375738]
[1734095580126,0.6634,224.46,224.39,0.5375738]
[1734095580321,8.32941216,224.4,224.39,0.5375738]
[1734095582447,41.6470608,224.4,224.39,0.5375738]
[1734095584835,0.6634,224.44,224.39,0.5375738]
[1734095585034,8.32941216,224.4,224.39,0.5375738]
[1734095586055,0.6634,224.47,224.39,0.5375738]
[1734095586428,8.32941216,224.4,224.39,0.5375738]
[1734095588850,0.6634,224.47,224.39,0.5375738]
[1734095589058,8.32941216,224.4,224.39,0.5375738]
[1734095593735,8.32941216,224.44,224.4,24.027864]
[1734095594756,8.32941216,224.43,224.4,24.027864]
[1734095594942,0.6634,224.5,224.4,24.027864]
[1734095594943,8.32941216,224.42,224.4,24.027864]
[1734095597047,8.32941216,224.43,224.4,24.027864]
[1734095597660,8.32941216,224.42,224.4,24.027864]
[1734095597838,8.32941216,224.43,224.4,24.027864]
[1734095599063,8.32941216,224.42,224.4,24.027864]
[1734095599270,8.32941216,224.41,224.39,0.5375738]
[1734095599471,8.32941216,224.4,224.39,20.5375738]
[1734095599770,8.32941216,224.41,224.4,20.0]
[1734095600148,8.32941216,224.41,224.4,43.776884]
[1734095600342,0.6634,224.5,224.4,43.776884]
[1734095600548,8.32941216,224.42,224.41,23.776884]
[1734095600852,8.32941216,224.44,224.41,23.776884]
[1734095602682,0.6634,224.5,224.41,23.776884]
[1734095602683,8.32941216,224.47,224.42,0.25098]
[1734095603193,0.6634,224.52,224.45,0.12549]
[1734095603371,0.6634,224.56,224.45,24.027864]
[1734095603682,8.32941216,224.5,224.45,24.69598025]
[1734095604290,0.6634,224.59,224.49,0.12549]
[1734095604473,8.32941216,224.52,224.49,23.902374]
[1734095605189,8.32941216,224.53,224.48,24.027864]
[1734095605401,8.32941216,224.53,224.49,0.6679699]
[1734095605592,8.32941216,224.53,224.5,24.027864]
[1734095609699,8.32941216,224.52,224.5,24.027864]
[1734095614897,8.32941216,224.53,224.5,24.027864]
[1734095616004,8.32941216,224.53,224.5,0.12549]
[1734095616201,8.32941216,224.55,224.51,23.902374]
[1734095616399,7.2207,224.63,224.53,23.902374]
[1734095616581,8.32941216,224.56,224.53,23.902374]
[1734095617186,0.6634,224.63,224.53,23.902374]
[1734095617386,8.32941216,224.57,224.55,23.902374]
[1734095618675,8.32941216,224.56,224.55,23.902374]
[1734095618879,8.32941216,224.56,224.54,0.12549]
[1734095621699,8.32941216,224.57,224.54,0.12549]
[1734095622487,8.32941216,224.56,224.54,0.12549]
[1734095629503,2.2271,224.66,224.54,0.12549]
[1734095629708,2.2271,224.66,224.56,0.12549]
[1734095629709,8.32941216,224.6,224.56,0.12549]
[1734095630004,8.32941216,224.58,224.55,23.902374]
[1734095630185,8.32941216,224.56,224.51,8.84295391]